[Event "Srdja Dragasevic Memorial-A 2024"]
[Site "Cetinje"]
[Date "2024.06.26"]
[Round "6.7"]
[White "Willy, Stephen"]
[Black "Mammadov, Zaur"]
[Result "0-1"]
[ECO "C13"]
[WhiteElo "2046"]
[BlackElo "2426"]
[Annotator "RC"]
[PlyCount "80"]
[EventDate "2024.06.23"]
[EventType "swiss"]
[EventCountry "MNE"]
[SourceTitle "playchess.com"]
[Source "ChessBase"]
[SourceQuality "1"]
[TimeControl "40/5400+30:1800+30"]

1. e4 {[%emt 0:00:01]} e6 {[%emt 0:03:50]} 2. d4 {[%emt 0:00:05]} d5 {[%emt 0:00:04]} 3. Nc3 {[%emt 0:00:04]} Nf6 {[%emt 0:01:15]} 4. Bg5 {[%emt 0:00:37]} dxe4 {[%emt 0:01:51]} 5. Nxe4 {[%emt 0:00:11]} Be7 {[%emt 0:00:07]} 6. Bxf6 {[%emt 0:00:57]} gxf6 {[%emt 0:00:07]} 7. Nf3 {[%emt 0:01:06]} b6 {[%emt 0:01:20]} 8. Qd2 {[%emt 0:04:49]} Bb7 {[%emt 0:00:20]} 9. Nc3 {[%emt 0:08:22]} c6 {[%emt 0:02:41]} 10. Qh6 {[%emt 0:09:15]} Bb4 {[%emt 0:08:24]} 11. Bc4 {[%emt 0:08:09]} Nd7 {[%emt 0:04:35]} 12. Qg7 {[%emt 0:22:12]} Rf8 {[%emt 0:07:09]} 13. Qxh7 {[%emt 0:01:41]} Bxc3+ {[%emt 0:01:40]} 14. bxc3 {[%emt 0:00:02]} Qe7 {[%emt 0:00:10]} 15. a4 {[%emt 0:03:28]} O-O-O {[%emt 0:01:56]} 16. O-O {[%emt 0:05:09]} f5 {[%emt 0:05:28]} 17. Rfe1 {[%emt 0:01:28]} Qd6 {[%emt 0:17:30]} 18. Ng5 {[%emt 0:08:14]} Nf6 {[%emt 0:05:55]} 19. Qg7 {[%emt 0:00:48]} Ng4 {[%emt 0:01:43]} 20. h3 {[%emt 0:05:09]} Qh2+ {[%emt 0:02:15]} 21. Kf1 {[%emt 0:00:02]} c5 {[%emt 0:01:28]} 22. hxg4 {[%emt 0:01:13]} Qxg2+ {[%emt 0:00:03]} 23. Ke2 {[%emt 0:00:10]} Qxg4+ {[%emt 0:00:17]} 24. f3 {[%emt 0:02:51]} Bxf3+ {[%emt 0:03:40]} 25. Ke3 {[%emt 0:01:30]} Rg8 {[%emt 0:02:16]} 26. Ba6+ {[%emt 0:01:19]} Bb7 {[%emt 0:02:08]} 27. Bxb7+ {[%emt 0:00:16]} Kxb7 {[%emt 0:00:02]} 28. Qxf7+ {[%emt 0:00:24]} Ka8 {[%emt 0:01:23]} 29. Nf3 {[%emt 0:01:47]} Rdf8 {[%emt 0:02:09]} 30. Qh7 {[%emt 0:04:30]} Qe4+ {[%emt 0:00:54]} 31. Kf2 {[%emt 0:00:16]} Qxc2+ {[%emt 0:00:07]} 32. Re2 {[%emt 0:00:14]} Rg2+ {[%emt 0:00:04]} 33. Kxg2 {[%emt 0:00:06]} Qxe2+ {[%emt 0:00:06]} 34. Kg1 {[%emt 0:00:40]} Qxf3 {[%emt 0:00:07]} 35. Qg7 {[%emt 0:01:23]} Rd8 {[%emt 0:01:53]} 36. dxc5 {[%emt 0:01:04]} Qe3+ {[%emt 0:02:47]} 37. Kh1 {[%emt 0:00:25]} Qh3+ {[%emt 0:00:31]} 38. Kg1 {[%emt 0:00:02]} Rd2 {[%emt 0:00:41]} 39. Qg8+ {[%emt 0:03:04]} Kb7 {[%emt 0:00:12]} 40. c6+ {[%emt 0:00:00]} Ka6 {[%emt 0:00:00]} 0-1

[Event "Srdja Dragasevic Memorial-A 2024"]
[Site "Cetinje"]
[Date "2024.06.26"]
[Round "6.8"]
[White "Guleryuz, Kuzey"]
[Black "Kosic, Dragan"]
[Result "0-1"]
[ECO "B06"]
[WhiteElo "1971"]
[BlackElo "2382"]
[Annotator "RC"]
[PlyCount "80"]
[EventDate "2024.06.23"]
[EventType "swiss"]
[EventCountry "MNE"]
[SourceTitle "playchess.com"]
[Source "ChessBase"]
[SourceQuality "1"]
[TimeControl "40/5400+30:1800+30"]

1. e4 {[%emt 0:00:03]} c5 {[%emt 0:03:31]} 2. c3 {[%emt 0:00:07]} d5 {[%emt 0:00:28]} 3. exd5 {[%emt 0:00:08]} Qxd5 {[%emt 0:00:04]} 4. d4 {[%emt 0:00:06]} g6 {[%emt 0:00:13]} 5. Nf3 {[%emt 0:00:20]} Bg7 {[%emt 0:00:34]} 6. Na3 {[%emt 0:00:09]} cxd4 {[%emt 0:00:31]} 7. Bc4 {[%emt 0:00:12]} Qd8 {[%emt 0:00:35]} 8. cxd4 {[%emt 0:11:24]} Nf6 {[%emt 0:03:13]} 9. Bf4 {[%emt 0:07:09]} O-O {[%emt 0:01:02]} 10. Nb5 {[%emt 0:02:17]} a6 {[%emt 0:04:20]} 11. Nc3 {[%emt 0:12:15]} b5 {[%emt 0:02:08]} 12. Bb3 {[%emt 0:01:09]} Nc6 {[%emt 0:01:03]} 13. h3 {[%emt 0:10:09]} Na5 {[%emt 0:01:31]} 14. Bc2 {[%emt 0:02:15]} Bb7 {[%emt 0:00:09]} 15. O-O {[%emt 0:01:49]} Nc4 {[%emt 0:02:47]} 16. b3 {[%emt 0:08:18]} Na3 {[%emt 0:02:19]} 17. Bd3 {[%emt 0:01:43]} Rc8 {[%emt 0:09:08]} 18. Rc1 {[%emt 0:03:06]} Bxf3 {[%emt 0:03:43]} 19. Qxf3 {[%emt 0:00:14]} Qxd4 {[%emt 0:00:07]} 20. Ne2 {[%emt 0:04:34]} Qd5 {[%emt 0:05:33]} 21. Bd2 {[%emt 0:06:38]} Qxf3 {[%emt 0:08:08]} 22. gxf3 {[%emt 0:00:01]} Rcd8 {[%emt 0:00:12]} 23. Bb4 {[%emt 0:01:28]} Rxd3 {[%emt 0:00:09]} 24. Bxa3 {[%emt 0:00:04]} Rfd8 {[%emt 0:04:54]} 25. Rc6 {[%emt 0:08:15]} Nd5 {[%emt 0:04:21]} 26. Rxa6 {[%emt 0:03:27]} Rd2 {[%emt 0:11:02]} 27. Re1 {[%emt 0:02:29]} Rc8 {[%emt 0:00:57]} 28. Bc1 {[%emt 0:04:21]} Rxe2 {[%emt 0:04:38]} 29. Rxe2 {[%emt 0:00:01]} Rxc1+ {[%emt 0:00:11]} 30. Kh2 {[%emt 0:00:05]} Bh6 {[%emt 0:04:04]} 31. a4 {[%emt 0:03:43]} Bf4+ {[%emt 0:00:50]} 32. Kg2 {[%emt 0:00:01]} Bd6 {[%emt 0:00:52]} 33. Rd2 {[%emt 0:00:53]} Nf4+ {[%emt 0:00:54]} 34. Kh2 {[%emt 0:00:51]} bxa4 {[%emt 0:02:53]} 35. bxa4 {[%emt 0:00:07]} Kg7 {[%emt 0:01:57]} 36. a5 {[%emt 0:01:45]} Ra1 {[%emt 0:00:34]} 37. h4 {[%emt 0:01:17]} Kh6 {[%emt 0:03:14]} 38. Ra8 {[%emt 0:02:07]} Nd3+ {[%emt 0:01:42]} 39. Kh3 {[%emt 0:00:49]} Ne1 {[%emt 0:00:14]} 40. a6 {[%emt 0:00:00]} Ra3 {[%emt 0:00:00]} 0-1

[Event "Srdja Dragasevic Memorial-A 2024"]
[Site "Cetinje"]
[Date "2024.06.26"]
[Round "6.9"]
[White "Damljanovic, Branko"]
[Black "Kolmakov, Ivan D."]
[Result "1-0"]
[ECO "E18"]
[WhiteElo "2364"]
[BlackElo "1902"]
[Annotator "RC"]
[PlyCount "69"]
[EventDate "2024.06.23"]
[EventType "swiss"]
[EventCountry "MNE"]
[SourceTitle "playchess.com"]
[Source "ChessBase"]
[SourceQuality "1"]
[TimeControl "40/5400+30:1800+30"]

1. Nf3 {[%emt 0:02:13]} e6 {[%emt 0:00:07]} 2. g3 {[%emt 0:00:06]} d5 {[%emt 0:00:20]} 3. Bg2 {[%emt 0:00:04]} b6 {[%emt 0:00:47]} 4. c4 {[%emt 0:00:25]} Bb7 {[%emt 0:00:31]} 5. cxd5 {[%emt 0:00:34]} exd5 {[%emt 0:00:26]} 6. O-O {[%emt 0:02:22]} Nf6 {[%emt 0:01:05]} 7. Nc3 {[%emt 0:00:31]} Be7 {[%emt 0:06:06]} 8. d4 {[%emt 0:00:20]} O-O {[%emt 0:01:04]} 9. Bf4 {[%emt 0:00:08]} Nbd7 {[%emt 0:08:05]} 10. Rc1 {[%emt 0:00:32]} c6 {[%emt 0:14:20]} 11. Ne1 {[%emt 0:06:52]} Ne8 {[%emt 0:03:40]} 12. Nd3 {[%emt 0:02:34]} Bg5 {[%emt 0:03:07]} 13. b4 {[%emt 0:02:23]} a6 {[%emt 0:07:41]} 14. a4 {[%emt 0:02:28]} Bxf4 {[%emt 0:04:57]} 15. Nxf4 {[%emt 0:01:01]} Nd6 {[%emt 0:01:12]} 16. b5 {[%emt 0:00:42]} cxb5 {[%emt 0:09:35]} 17. axb5 {[%emt 0:00:10]} Nxb5 {[%emt 0:05:22]} 18. Nxb5 {[%emt 0:00:41]} axb5 {[%emt 0:00:02]} 19. Nxd5 {[%emt 0:00:34]} Kh8 {[%emt 0:12:51]} 20. e3 {[%emt 0:01:45]} Nf6 {[%emt 0:01:02]} 21. Nxf6 {[%emt 0:00:09]} Bxg2 {[%emt 0:00:08]} 22. Kxg2 {[%emt 0:00:06]} Qxf6 {[%emt 0:00:07]} 23. Qf3 {[%emt 0:00:39]} Qe7 {[%emt 0:09:40]} 24. Rc6 {[%emt 0:00:35]} Rab8 {[%emt 0:03:55]} 25. Rb1 {[%emt 0:00:10]} b4 {[%emt 0:00:22]} 26. Rc4 {[%emt 0:00:15]} f5 {[%emt 0:01:39]} 27. Rcxb4 {[%emt 0:00:16]} Qe6 {[%emt 0:00:10]} 28. Rb5 {[%emt 0:00:15]} g5 {[%emt 0:00:27]} 29. Re5 {[%emt 0:00:19]} Qg6 {[%emt 0:02:24]} 30. Rbb5 {[%emt 0:00:10]} g4 {[%emt 0:00:31]} 31. Qd5 {[%emt 0:01:04]} Qh6 {[%emt 0:03:46]} 32. Rxf5 {[%emt 0:00:46]} Rxf5 {[%emt 0:00:12]} 33. Qxf5 {[%emt 0:00:02]} Rf8 {[%emt 0:00:01]} 34. Qe5+ {[%emt 0:00:17]} Kg8 {[%emt 0:00:06]} 35. Qg5+ {[%emt 0:00:08]} 1-0

[Event "Srdja Dragasevic Memorial-A 2024"]
[Site "Cetinje"]
[Date "2024.06.26"]
[Round "6.10"]
[White "Skvortsov, Andrei"]
[Black "Abdulkarimli, Eljan"]
[Result "1/2-1/2"]
[ECO "B22"]
[WhiteElo "2331"]
[BlackElo "2124"]
[Annotator "RC"]
[PlyCount "67"]
[EventDate "2024.06.23"]
[EventType "swiss"]
[EventCountry "MNE"]
[SourceTitle "playchess.com"]
[Source "ChessBase"]
[SourceQuality "1"]
[TimeControl "40/5400+30:1800+30"]

1. c4 {[%emt 0:05:43]} c6 {[%emt 0:00:32]} 2. e4 {[%emt 0:00:07]} d5 {[%emt 0:02:23]} 3. cxd5 {[%emt 0:00:07]} cxd5 {[%emt 0:00:06]} 4. e5 {[%emt 0:00:03]} Nc6 {[%emt 0:01:35]} 5. d4 {[%emt 0:00:08]} Bf5 {[%emt 0:13:12]} 6. Bd3 {[%emt 0:00:15]} Bxd3 {[%emt 0:04:10]} 7. Qxd3 {[%emt 0:00:28]} Qb6 {[%emt 0:02:19]} 8. Nf3 {[%emt 0:00:05]} Nb4 {[%emt 0:07:47]} 9. Qe2 {[%emt 0:00:17]} Qa6 {[%emt 0:03:02]} 10. Qxa6 {[%emt 0:00:52]} Nxa6 {[%emt 0:00:49]} 11. Ke2 {[%emt 0:04:10]} e6 {[%emt 0:01:15]} 12. Be3 {[%emt 0:02:56]} h6 {[%emt 0:04:46]} 13. Nc3 {[%emt 0:02:43]} Nc7 {[%emt 0:02:19]} 14. Rac1 {[%emt 0:01:00]} Kd7 {[%emt 0:01:38]} 15. Ne1 {[%emt 0:03:03]} Ne7 {[%emt 0:03:24]} 16. Nd3 {[%emt 0:00:40]} Nc6 {[%emt 0:11:29]} 17. f4 {[%emt 0:05:03]} f5 {[%emt 0:02:09]} 18. Na4 {[%emt 0:01:18]} b6 {[%emt 0:00:59]} 19. Nc3 {[%emt 0:02:21]} Be7 {[%emt 0:03:04]} 20. Rc2 {[%emt 0:02:09]} Nb4 {[%emt 0:02:20]} 21. Nxb4 {[%emt 0:00:34]} Bxb4 {[%emt 0:00:03]} 22. Nd1 {[%emt 0:00:08]} Rac8 {[%emt 0:05:50]} 23. Nf2 {[%emt 0:00:38]} Na6 {[%emt 0:02:21]} 24. Rxc8 {[%emt 0:06:36]} Rxc8 {[%emt 0:00:27]} 25. Kd3 {[%emt 0:02:07]} Be7 {[%emt 0:01:37]} 26. a3 {[%emt 0:00:39]} Ke8 {[%emt 0:05:19]} 27. Nd1 {[%emt 0:01:13]} Nb8 {[%emt 0:02:04]} 28. Nc3 {[%emt 0:00:40]} a6 {[%emt 0:01:24]} 29. Rg1 {[%emt 0:00:52]} Kf7 {[%emt 0:00:51]} 30. h3 {[%emt 0:00:53]} Nd7 {[%emt 0:01:08]} 31. g4 {[%emt 0:01:24]} g6 {[%emt 0:00:07]} 32. a4 {[%emt 0:00:13]} Nb8 {[%emt 0:03:19]} 33. gxf5 {[%emt 0:02:00]} gxf5 {[%emt 0:00:05]} 34. Rg2 {[%emt 0:01:44]} 1/2-1/2

[Event "Srdja Dragasevic Memorial-A 2024"]
[Site "Cetinje"]
[Date "2024.06.26"]
[Round "6.11"]
[White "Hart, Alexander"]
[Black "Vujovic, Savo"]
[Result "0-1"]
[ECO "A16"]
[WhiteElo "1949"]
[BlackElo "2230"]
[Annotator "RC"]
[PlyCount "138"]
[EventDate "2024.06.23"]
[EventType "swiss"]
[EventCountry "MNE"]
[SourceTitle "playchess.com"]
[Source "ChessBase"]
[SourceQuality "1"]
[TimeControl "40/5400+30:1800+30"]

1. c4 {[%emt 0:00:03]} Nf6 {[%emt 0:06:30]} 2. g3 {[%emt 0:00:58]} g6 {[%emt 0:00:43]} 3. Bg2 {[%emt 0:00:06]} Bg7 {[%emt 0:00:03]} 4. Nc3 {[%emt 0:00:25]} O-O {[%emt 0:00:14]} 5. e4 {[%emt 0:05:01]} d6 {[%emt 0:01:17]} 6. Nge2 {[%emt 0:00:21]} e5 {[%emt 0:01:12]} 7. b4 {[%emt 0:04:16]} Nc6 {[%emt 0:02:00]} 8. Rb1 {[%emt 0:02:13]} Nd4 {[%emt 0:02:50]} 9. Nxd4 {[%emt 0:07:11]} exd4 {[%emt 0:00:15]} 10. Ne2 {[%emt 0:01:13]} d3 {[%emt 0:24:43]} 11. Nc3 {[%emt 0:04:10]} Be6 {[%emt 0:01:06]} 12. Qb3 {[%emt 0:01:50]} c6 {[%emt 0:04:38]} 13. b5 {[%emt 0:03:04]} Nd7 {[%emt 0:10:41]} 14. Nd1 {[%emt 0:09:34]} Nc5 {[%emt 0:02:35]} 15. Qa3 {[%emt 0:05:16]} Bxc4 {[%emt 0:02:25]} 16. bxc6 {[%emt 0:00:34]} bxc6 {[%emt 0:00:13]} 17. O-O {[%emt 0:02:32]} Rb8 {[%emt 0:06:39]} 18. Bb2 {[%emt 0:00:57]} Be6 {[%emt 0:00:49]} 19. Rc1 {[%emt 0:06:34]} Rb5 {[%emt 0:10:18]} 20. Bxg7 {[%emt 0:02:32]} Kxg7 {[%emt 0:00:05]} 21. e5 {[%emt 0:02:16]} Ra5 {[%emt 0:03:28]} 22. Qc3 {[%emt 0:01:26]} Na4 {[%emt 0:01:02]} 23. Qxd3 {[%emt 0:02:38]} dxe5 {[%emt 0:00:17]} 24. Qe3 {[%emt 0:04:10]} Nb6 {[%emt 0:07:10]} 25. Rxc6 {[%emt 0:03:45]} Nc4 {[%emt 0:05:44]} 26. Qc3 {[%emt 0:01:39]} Nxd2 {[%emt 0:00:59]} 27. Re1 {[%emt 0:00:24]} Nb1 {[%emt 0:00:49]} 28. Qa1 {[%emt 0:03:57]} Qd2 {[%emt 0:00:41]} 29. Rxe5 {[%emt 0:01:59]} Kg8 {[%emt 0:02:50]} 30. Bf3 {[%emt 0:07:13]} Rxe5 {[%emt 0:01:58]} 31. Qxe5 {[%emt 0:00:19]} Qxa2 {[%emt 0:00:20]} 32. Ne3 {[%emt 0:02:25]} Nd2 {[%emt 0:00:54]} 33. Be2 {[%emt 0:05:35]} Qb1+ {[%emt 0:00:09]} 34. Kg2 {[%emt 0:02:22]} Qb7 {[%emt 0:00:44]} 35. Qc7 {[%emt 0:01:05]} Qa8 {[%emt 0:00:45]} 36. Ba6 {[%emt 0:03:10]} Nb3 {[%emt 0:00:39]} 37. Bb7 {[%emt 0:01:55]} Qb8 {[%emt 0:00:06]} 38. Rc3 {[%emt 0:03:26]} Qxc7 {[%emt 0:00:47]} 39. Rxc7 {[%emt 0:00:02]} a5 {[%emt 0:00:17]} 40. Nd5 {[%emt 0:00:00]} Rb8 {[%emt 0:00:00]} 41. Nf4 {[%emt 0:10:49]} Bc4 {[%emt 0:09:52]} 42. Nd5 {[%emt 0:06:56]} Kg7 {[%emt 0:03:47]} 43. Ne3 {[%emt 0:13:22]} Be6 {[%emt 0:00:27]} 44. Be4 {[%emt 0:01:43]} a4 {[%emt 0:03:22]} 45. Ra7 {[%emt 0:00:21]} Nc5 {[%emt 0:00:06]} 46. Bf3 {[%emt 0:00:40]} Rb2 {[%emt 0:01:30]} 47. Bd5 {[%emt 0:00:50]} Bxd5+ {[%emt 0:03:01]} 48. Nxd5 {[%emt 0:00:01]} Rd2 {[%emt 0:01:35]} 49. Nc3 {[%emt 0:00:47]} Rd4 {[%emt 0:00:09]} 50. Nb5 {[%emt 0:00:44]} Rd2 {[%emt 0:06:52]} 51. Ra8 {[%emt 0:00:30]} Rb2 {[%emt 0:00:57]} 52. Nc3 {[%emt 0:00:15]} Rb4 {[%emt 0:03:22]} 53. Rc8 {[%emt 0:00:08]} Ne4 {[%emt 0:01:10]} 54. Nxe4 {[%emt 0:00:52]} Rxe4 {[%emt 0:00:04]} 55. h4 {[%emt 0:00:27]} h5 {[%emt 0:00:41]} 56. Ra8 {[%emt 0:00:05]} Rb4 {[%emt 0:00:07]} 57. Ra6 {[%emt 0:00:27]} Rc4 {[%emt 0:01:57]} 58. Ra7 {[%emt 0:00:08]} Kf6 {[%emt 0:00:04]} 59. Ra6+ {[%emt 0:00:11]} Ke5 {[%emt 0:00:35]} 60. Ra5+ {[%emt 0:00:16]} Kd4 {[%emt 0:00:42]} 61. Kf3 {[%emt 0:01:08]} Kc3 {[%emt 0:00:18]} 62. Ke2 {[%emt 0:00:44]} Kb3 {[%emt 0:00:20]} 63. Ra7 {[%emt 0:00:59]} a3 {[%emt 0:00:07]} 64. Kd3 {[%emt 0:00:19]} Rb4 {[%emt 0:00:24]} 65. Kd2 {[%emt 0:00:38]} a2 {[%emt 0:00:16]} 66. Kc1 {[%emt 0:00:47]} Rc4+ {[%emt 0:00:04]} 67. Kd2 {[%emt 0:00:30]} Ra4 {[%emt 0:00:10]} 68. Rb7+ {[%emt 0:00:38]} Ka3 {[%emt 0:00:15]} 69. Kc2 {[%emt 0:00:24]} a1=Q {[%emt 0:00:13]} 0-1

[Event "Srdja Dragasevic Memorial-A 2024"]
[Site "Cetinje"]
[Date "2024.06.26"]
[Round "6.12"]
[White "Engin, Onur Cinar"]
[Black "Tomic, Aleksandar"]
[Result "1-0"]
[ECO "B01"]
[WhiteElo "2114"]
[BlackElo "2388"]
[Annotator "RC"]
[PlyCount "51"]
[EventDate "2024.06.23"]
[EventType "swiss"]
[EventCountry "MNE"]
[SourceTitle "playchess.com"]
[Source "ChessBase"]
[SourceQuality "1"]
[TimeControl "40/5400+30:1800+30"]

1. e4 {[%emt 0:01:03]} d5 {[%emt 0:13:22]} 2. exd5 {[%emt 0:00:15]} Nf6 {[%emt 0:00:06]} 3. Nf3 {[%emt 0:03:27]} Qxd5 {[%emt 0:02:23]} 4. Be2 {[%emt 0:04:40]} Bg4 {[%emt 0:03:30]} 5. h3 {[%emt 0:01:56]} Bh5 {[%emt 0:04:16]} 6. Nc3 {[%emt 0:00:48]} Qd8 {[%emt 0:00:37]} 7. O-O {[%emt 0:06:02]} e6 {[%emt 0:01:05]} 8. Ne5 {[%emt 0:10:16]} Bxe2 {[%emt 0:00:53]} 9. Qxe2 {[%emt 0:00:06]} c6 {[%emt 0:00:40]} 10. Re1 {[%emt 0:08:11]} Be7 {[%emt 0:03:31]} 11. d4 {[%emt 0:02:39]} O-O {[%emt 0:00:55]} 12. Qd3 {[%emt 0:05:53]} Nbd7 {[%emt 0:02:18]} 13. Qg3 {[%emt 0:11:02]} Kh8 {[%emt 0:07:26]} 14. Bg5 {[%emt 0:03:04]} Nh5 {[%emt 0:04:54]} 15. Qh4 {[%emt 0:05:21]} Bxg5 {[%emt 0:01:30]} 16. Qxh5 {[%emt 0:00:21]} g6 {[%emt 0:02:11]} 17. Qf3 {[%emt 0:03:07]} Nxe5 {[%emt 0:07:02]} 18. dxe5 {[%emt 0:00:05]} Qc7 {[%emt 0:00:17]} 19. Rad1 {[%emt 0:02:40]} Be7 {[%emt 0:06:56]} 20. Ne4 {[%emt 0:05:17]} Qxe5 {[%emt 0:36:38]} 21. Rd7 {[%emt 0:00:58]} Bc5 {[%emt 0:00:00]} 22. Rxb7 {[%emt 0:06:37]} f5 {[%emt 0:00:00]} 23. Qd1 {[%emt 0:00:44]} Rad8 {[%emt 0:00:00]} 24. Qc1 {[%emt 0:00:32]} fxe4 {[%emt 0:01:28]} 25. Qh6 {[%emt 0:00:42]} Bxf2+ {[%emt 0:00:25]} 26. Kh1 {[%emt 0:00:06]} 1-0

[Event "Srdja Dragasevic Memorial-A 2024"]
[Site "Cetinje"]
[Date "2024.06.26"]
[Round "6.13"]
[White "Arora Honi"]
[Black "Alimpic, Aleksa"]
[Result "0-1"]
[ECO "B12"]
[WhiteElo "2082"]
[BlackElo "2281"]
[Annotator "RC"]
[PlyCount "92"]
[EventDate "2024.06.23"]
[EventType "swiss"]
[EventCountry "MNE"]
[SourceTitle "playchess.com"]
[Source "ChessBase"]
[SourceQuality "1"]
[TimeControl "40/5400+30:1800+30"]

1. e4 {[%emt 0:01:55]} c6 {[%emt 0:00:04]} 2. d4 {[%emt 0:00:40]} d5 {[%emt 0:00:05]} 3. e5 {[%emt 0:00:05]} Bf5 {[%emt 0:00:03]} 4. h4 {[%emt 0:00:09]} h5 {[%emt 0:00:08]} 5. Bd3 {[%emt 0:00:09]} Bxd3 {[%emt 0:00:09]} 6. Qxd3 {[%emt 0:00:03]} Qa5+ {[%emt 0:00:13]} 7. b4 {[%emt 0:00:18]} Qxb4+ {[%emt 0:00:16]} 8. Nd2 {[%emt 0:00:08]} e6 {[%emt 0:00:12]} 9. Rb1 {[%emt 0:00:07]} Qe7 {[%emt 0:00:09]} 10. c4 {[%emt 0:00:06]} Nh6 {[%emt 0:00:28]} 11. Ne2 {[%emt 0:00:19]} Nf5 {[%emt 0:00:26]} 12. Ng3 {[%emt 0:00:15]} Nxh4 {[%emt 0:00:16]} 13. Qc2 {[%emt 0:01:15]} Ng6 {[%emt 0:14:43]} 14. cxd5 {[%emt 0:13:38]} cxd5 {[%emt 0:00:26]} 15. Qc8+ {[%emt 0:14:44]} Qd8 {[%emt 0:00:08]} 16. Qxd8+ {[%emt 0:04:49]} Kxd8 {[%emt 0:00:05]} 17. Rxb7 {[%emt 0:00:17]} h4 {[%emt 0:08:32]} 18. Ne2 {[%emt 0:10:37]} Nd7 {[%emt 0:09:44]} 19. Nb3 {[%emt 0:11:47]} a5 {[%emt 0:14:32]} 20. a4 {[%emt 0:10:48]} Bb4+ {[%emt 0:08:26]} 21. Bd2 {[%emt 0:00:28]} Ne7 {[%emt 0:00:36]} 22. g3 {[%emt 0:14:25]} Nc6 {[%emt 0:05:26]} 23. gxh4 {[%emt 0:11:01]} Kc8 {[%emt 0:01:39]} 24. Rb5 {[%emt 0:00:15]} Na7 {[%emt 0:00:14]} 25. Rxa5 {[%emt 0:00:19]} Bxa5 {[%emt 0:00:13]} 26. Nxa5 {[%emt 0:00:10]} Nb8 {[%emt 0:12:28]} 27. Nb3 {[%emt 0:01:56]} Nac6 {[%emt 0:00:14]} 28. Nc3 {[%emt 0:00:53]} Nd7 {[%emt 0:02:12]} 29. Be3 {[%emt 0:01:49]} Na5 {[%emt 0:02:02]} 30. Nxa5 {[%emt 0:01:22]} Rxa5 {[%emt 0:00:02]} 31. Ke2 {[%emt 0:00:06]} Nb6 {[%emt 0:00:50]} 32. Kf3 {[%emt 0:00:58]} Kd7 {[%emt 0:00:59]} 33. Rb1 {[%emt 0:00:15]} Kc6 {[%emt 0:01:37]} 34. Nb5 {[%emt 0:00:48]} Rxa4 {[%emt 0:03:05]} 35. Nd6 {[%emt 0:00:19]} Nc4 {[%emt 0:00:38]} 36. Nb7 {[%emt 0:00:14]} Rb8 {[%emt 0:02:34]} 37. Na5+ {[%emt 0:00:07]} Kc7 {[%emt 0:00:04]} 38. Rxb8 {[%emt 0:00:19]} Kxb8 {[%emt 0:00:05]} 39. Nb3 {[%emt 0:01:10]} Nxe3 {[%emt 0:01:50]} 40. fxe3 {[%emt 0:00:00]} Kc7 {[%emt 0:00:00]} 41. Kf4 {[%emt 0:00:35]} Ra3 {[%emt 0:02:45]} 42. Nc5 {[%emt 0:00:24]} Rc3 {[%emt 0:00:37]} 43. Kf3 {[%emt 0:00:47]} Kc6 {[%emt 0:01:55]} 44. Na4 {[%emt 0:02:12]} Rc2 {[%emt 0:00:37]} 45. Kf4 {[%emt 0:01:08]} Kb5 {[%emt 0:00:55]} 46. Nc5 {[%emt 0:00:02]} Rxc5 {[%emt 0:00:18]} 0-1

[Event "Srdja Dragasevic Memorial-A 2024"]
[Site "Cetinje"]
[Date "2024.06.26"]
[Round "6.14"]
[White "Skvortsova, Alena"]
[Black "Ivanovic, Bozidar"]
[Result "1/2-1/2"]
[ECO "B80"]
[WhiteElo "2170"]
[BlackElo "2371"]
[Annotator "RC"]
[PlyCount "112"]
[EventDate "2024.06.23"]
[EventType "swiss"]
[EventCountry "MNE"]
[SourceTitle "playchess.com"]
[Source "ChessBase"]
[SourceQuality "1"]
[TimeControl "40/5400+30:1800+30"]

1. e4 {[%emt 0:03:38]} c5 {[%emt 0:03:47]} 2. Nf3 {[%emt 0:00:10]} e6 {[%emt 0:00:47]} 3. d4 {[%emt 0:00:12]} cxd4 {[%emt 0:00:17]} 4. Nxd4 {[%emt 0:00:07]} Nf6 {[%emt 0:00:42]} 5. Nc3 {[%emt 0:00:15]} d6 {[%emt 0:00:39]} 6. Be3 {[%emt 0:01:34]} a6 {[%emt 0:02:30]} 7. f3 {[%emt 0:00:37]} b5 {[%emt 0:02:17]} 8. Qd2 {[%emt 0:01:31]} Nbd7 {[%emt 0:03:02]} 9. g4 {[%emt 0:01:22]} h6 {[%emt 0:23:37]} 10. O-O-O {[%emt 0:02:33]} Bb7 {[%emt 0:06:49]} 11. h4 {[%emt 0:02:43]} Qa5 {[%emt 0:05:18]} 12. Kb1 {[%emt 0:06:00]} b4 {[%emt 0:08:22]} 13. Nce2 {[%emt 0:01:15]} d5 {[%emt 0:02:12]} 14. Nf4 {[%emt 0:09:26]} dxe4 {[%emt 0:03:30]} 15. Ndxe6 {[%emt 0:01:54]} fxe6 {[%emt 0:00:43]} 16. Nxe6 {[%emt 0:01:47]} Bd5 {[%emt 0:00:25]} 17. Qxd5 {[%emt 0:16:33]} Nxd5 {[%emt 0:00:12]} 18. Rxd5 {[%emt 0:00:05]} Qxd5 {[%emt 0:01:25]} 19. Nc7+ {[%emt 0:00:14]} Kf7 {[%emt 0:04:21]} 20. Nxd5 {[%emt 0:00:11]} Bc5 {[%emt 0:06:05]} 21. Bxc5 {[%emt 0:21:03]} Nxc5 {[%emt 0:00:07]} 22. Nxb4 {[%emt 0:00:21]} Rhe8 {[%emt 0:10:11]} 23. fxe4 {[%emt 0:03:30]} a5 {[%emt 0:02:22]} 24. Bc4+ {[%emt 0:03:04]} Kg6 {[%emt 0:00:22]} 25. Nd3 {[%emt 0:01:02]} Nxe4 {[%emt 0:01:24]} 26. Nf4+ {[%emt 0:05:00]} Kh7 {[%emt 0:01:29]} 27. Bd3 {[%emt 0:00:10]} Kg8 {[%emt 0:00:51]} 28. Kc1 {[%emt 0:03:02]} Rac8 {[%emt 0:00:13]} 29. Rf1 {[%emt 0:01:37]} Ng3 {[%emt 0:03:51]} 30. Rg1 {[%emt 0:03:38]} g5 {[%emt 0:01:51]} 31. hxg5 {[%emt 0:00:35]} hxg5 {[%emt 0:00:02]} 32. Rxg3 {[%emt 0:04:05]} gxf4 {[%emt 0:00:08]} 33. Rf3 {[%emt 0:00:02]} Re3 {[%emt 0:00:02]} 34. Rxe3 {[%emt 0:00:07]} fxe3 {[%emt 0:00:05]} 35. Kd1 {[%emt 0:00:39]} Kg7 {[%emt 0:01:26]} 36. Ke2 {[%emt 0:00:10]} Re8 {[%emt 0:00:01]} 37. g5 {[%emt 0:02:54]} Re5 {[%emt 0:00:29]} 38. g6 {[%emt 0:02:02]} Kf6 {[%emt 0:00:09]} 39. a3 {[%emt 0:00:52]} Re7 {[%emt 0:00:39]} 40. b4 {[%emt 0:00:00]} axb4 {[%emt 0:00:00]} 41. axb4 {[%emt 0:00:59]} Kg5 {[%emt 0:01:45]} 42. g7 {[%emt 0:11:22]} Rxg7 {[%emt 0:00:11]} 43. Kxe3 {[%emt 0:00:05]} Kf6 {[%emt 0:00:15]} 44. Kd4 {[%emt 0:00:59]} Rg5 {[%emt 0:00:23]} 45. c4 {[%emt 0:02:47]} Ke6 {[%emt 0:02:17]} 46. c5 {[%emt 0:00:34]} Rd5+ {[%emt 0:11:58]} 47. Kc4 {[%emt 0:00:45]} Ke5 {[%emt 0:00:21]} 48. Bh7 {[%emt 0:05:43]} Rd7 {[%emt 0:04:24]} 49. Bg6 {[%emt 0:00:30]} Rg7 {[%emt 0:04:31]} 50. Bh5 {[%emt 0:01:37]} Rh7 {[%emt 0:01:30]} 51. Bf3 {[%emt 0:01:37]} Rh3 {[%emt 0:02:26]} 52. Bc6 {[%emt 0:00:21]} Rh4+ {[%emt 0:08:32]} 53. Kb5 {[%emt 0:01:06]} Kd4 {[%emt 0:00:15]} 54. Ka5 {[%emt 0:02:03]} Rh5 {[%emt 0:04:19]} 55. Be8 {[%emt 0:05:50]} Rxc5+ {[%emt 0:00:10]} 56. bxc5 {[%emt 0:00:03]} Kxc5 {[%emt 0:00:07]} 1/2-1/2